bitfinex-derivatives/quotes_SOLF0:USTF0_20250823
["timestamp","ask_amount","ask_price","bid_price","bid_amount"]
[1755988291109,4.926,203.06,203.03,2.8]
[1755988291409,4.926,203.06,202.97,3.4539496]
[1755988291410,4.926,203.06,203.04,2.8]
[1755988297719,3.4539496,203.05,202.95,4.9285]
[1755988297914,3.4539496,203.05,202.97,2.56]
[1755988298117,3.4539496,203.05,202.95,8.3824496]
[1755988298118,3.4539496,203.05,202.99,2.56]
[1755988299822,4.9264,203.04,202.99,2.56]
[1755988300118,4.9264,203.04,203.01,2.56]
[1755988301219,4.9264,203.04,202.95,8.3824496]
[1755988301521,4.9264,203.04,203.02,2.56]
[1755988302321,4.9264,203.04,202.99,2.56]
[1755988302520,4.9264,203.04,202.95,8.3824496]
[1755988302720,4.9264,203.04,202.96,7.06161773]
[1755988303021,4.9264,203.04,202.98,2.56]
[1755988303320,4.9264,203.04,203.0,2.56]
[1755988303521,4.9264,203.04,202.95,8.3824496]
[1755988303722,4.9264,203.04,203.02,2.56]
[1755988304223,4.9264,203.04,202.95,8.3824496]
[1755988304421,4.9264,203.04,202.97,2.56]
[1755988304720,4.9264,203.04,203.0,2.56]
[1755988304921,4.9264,203.04,203.01,2.56]
[1755988308224,4.9264,203.04,202.95,8.3824496]
[1755988308422,4.9264,203.04,203.02,2.56]
[1755988310623,3.4539496,203.05,202.97,4.928]
[1755988310924,8.3798496,203.06,202.99,2.56]
[1755988311119,8.3798496,203.06,203.01,2.56]
[1755988311425,4.9263,203.05,202.98,2.56]
[1755988311625,4.9263,203.05,202.99,4.50452338]
[1755988311827,4.9263,203.05,203.01,2.56]
[1755988314127,8.3804496,203.04,202.96,2.56]
[1755988314325,8.3804496,203.04,202.98,2.56]
[1755988314529,8.3804496,203.04,203.0,2.56]
[1755988314727,8.3804496,203.04,203.01,2.56]
[1755988324624,24.6178,203.16,202.98,3.4539496]
[1755988324829,3.4539496,203.1,203.0,3.4539496]
[1755988325028,3.4539496,203.1,203.02,2.71]
[1755988325229,8.3790496,203.1,203.04,2.71]
[1755988325429,8.3790496,203.1,203.06,2.71]
[1755988332146,3.4539496,203.08,202.96,2.71]
[1755988332342,3.4539496,203.05,202.98,2.71]
[1755988332638,3.4539496,203.05,203.01,2.71]
[1755988332944,3.4539496,203.05,203.02,4.55259686]
[1755988333240,3.4539496,203.05,203.03,4.55259686]
[1755988333442,3.4539496,203.05,203.01,2.71]
[1755988333642,3.4539496,203.05,203.02,4.55331766]
[1755988333843,3.4539496,203.05,203.03,4.55331766]
[1755988334043,3.4539496,203.05,203.01,2.71]
[1755988334242,3.4539496,203.05,203.02,4.55348021]
[1755988334445,3.4539496,203.05,203.03,4.55370859]
[1755988334640,3.4539496,203.05,203.01,2.71]
[1755988334840,3.4539496,203.05,203.02,4.55370859]
[1755988335042,3.4539496,203.05,203.03,4.55370859]
[1755988335243,3.4539496,203.05,202.97,4.928]
[1755988335439,3.4539496,203.05,203.02,2.71]
[1755988335645,3.4539496,203.05,203.03,4.55370574]
[1755988335844,3.4539496,203.05,203.02,2.71]
[1755988336043,3.4539496,203.05,203.03,4.55370574]
[1755988336343,3.4539496,203.05,203.02,2.71]
[1755988336644,3.4539496,203.05,203.03,4.55370696]
[1755988336844,3.4539496,203.05,203.02,2.71]
[1755988337146,3.4539496,203.05,203.03,4.55370696]
[1755988337344,3.4539496,203.05,203.02,2.71]
[1755988337544,3.4539496,203.05,203.03,4.55378119]
[1755988337748,3.4539496,203.05,203.02,2.71]
[1755988338048,3.4539496,203.05,203.03,4.55378119]
[1755988338243,3.4539496,203.05,203.02,2.71]
[1755988338444,3.4539496,203.05,203.03,4.55378263]
[1755988338648,3.4539496,203.05,203.02,2.71]
[1755988338845,3.4539496,203.05,203.03,4.55378263]
[1755988339047,3.4539496,203.05,203.02,2.71]
[1755988339250,8.3802496,203.05,202.99,2.71]
[1755988339548,8.3802496,203.05,203.01,2.71]
[1755988339749,8.3802496,203.05,203.02,4.55384412]
[1755988339945,8.3802496,203.05,203.01,2.71]
[1755988340154,8.3802496,203.05,203.02,7.26384412]
[1755988340452,8.3802496,203.05,203.02,2.71]
[1755988341155,3.4539496,203.05,202.98,2.71]
[1755988341453,3.4539496,203.05,203.0,2.71]
[1755988341755,3.4539496,203.05,203.02,2.71]
[1755988343154,3.4539496,203.05,202.97,4.928]
[1755988343353,3.4539496,203.05,203.03,2.71]
[1755988344761,8.3802496,203.05,202.98,2.71]
[1755988344961,8.3802496,203.05,202.99,4.55378377]
[1755988345259,8.3802496,203.05,203.0,7.26377951]
[1755988345459,8.3802496,203.05,203.01,7.26377951]
[1755988345654,8.3802496,203.05,203.02,4.55377951]
[1755988345853,8.3802496,203.05,203.01,2.71]
[1755988346053,8.3802496,203.05,203.02,4.53872018]
[1755988346253,8.3802496,203.05,203.01,2.71]
[1755988346450,8.3802496,203.05,203.02,4.53871596]
[1755988346650,8.3802496,203.05,203.01,2.71]
[1755988346856,8.3802496,203.05,203.02,4.53871596]
[1755988347155,8.3802496,203.05,203.01,2.71]
[1755988347353,3.4539496,203.05,203.02,7.24880091]
[1755988347556,3.4539496,203.05,203.02,2.71]
[1755988351063,3.4539496,203.05,203.03,2.71]
[1755988351262,3.4539496,203.05,203.04,4.53871182]
[1755988351564,3.4539496,203.05,203.04,7.24871182]
[1755988351764,4.926,203.06,203.04,7.24871182]
[1755988351961,4.926,203.06,203.04,2.71]
[1755988354167,3.4539496,203.11,203.02,2.84]
[1755988354367,3.4539496,203.11,203.04,2.84]
[1755988354567,3.4539496,203.11,203.05,4.53836134]
[1755988354769,3.4539496,203.11,203.06,4.53836134]
[1755988355073,3.4539496,203.11,203.07,4.53670615]
[1755988355366,3.4539496,203.09,203.03,2.84]
[1755988355567,3.4539496,203.07,203.04,4.53741588]
[1755988355767,3.4539496,203.07,203.05,4.53727954]
[1755988355964,3.4539496,203.07,203.03,2.84]
[1755988356170,3.4539496,203.07,203.04,4.53740856]
[1755988356368,3.4539496,203.07,203.03,2.84]
[1755988356671,8.3797496,203.07,203.04,4.53733373]
[1755988356863,8.3797496,203.07,203.03,2.84]
[1755988357071,8.3797496,203.07,203.04,7.37733373]
[1755988357268,8.3797496,203.07,203.04,2.84]
[1755988362378,8.3797496,203.07,203.0,2.84]
[1755988362678,8.3797496,203.07,203.02,2.84]
[1755988362978,8.3797496,203.07,203.03,7.37754326]
[1755988363275,8.3797496,203.07,203.04,4.53754326]
[1755988363577,8.3797496,203.07,203.03,2.84]
[1755988363878,8.3797496,203.07,203.04,4.53762016]
[1755988364081,8.3797496,203.07,203.03,2.84]
[1755988364380,8.3797496,203.07,203.04,4.53771099]
[1755988364675,8.3797496,203.07,203.03,2.84]
[1755988365074,8.3797496,203.07,203.04,4.53780074]
[1755988365275,8.3797496,203.07,203.04,2.84]
[1755988368179,8.3797496,203.07,202.99,4.9274]
[1755988368377,8.3797496,203.07,203.02,2.84]
[1755988368675,4.9258,203.07,203.04,2.84]
[1755988372877,4.9258,203.07,203.0,4.9272]
[1755988373082,4.9258,203.07,203.02,2.84]
[1755988373283,4.9258,203.07,203.04,2.84]
[1755988377688,4.9258,203.07,203.05,4.5774773]
[1755988377978,4.9258,203.07,203.04,2.84]
[1755988378184,4.9258,203.07,203.05,4.57719771]
[1755988378385,4.9258,203.07,203.04,2.84]
[1755988378585,4.9258,203.07,203.05,4.57706099]
[1755988378785,4.9258,203.07,203.04,2.84]
[1755988378985,4.9258,203.07,203.05,4.57706099]
[1755988379286,4.9258,203.07,203.04,2.84]
[1755988379587,4.9258,203.07,203.05,4.57696172]
[1755988379788,4.9258,203.07,203.04,2.84]
[1755988379988,4.9258,203.07,203.05,4.57696172]
[1755988380193,4.9258,203.07,203.04,2.84]
[1755988380488,4.9258,203.07,203.05,4.57694505]
[1755988380689,4.9258,203.07,203.04,2.84]
[1755988381002,4.9258,203.07,203.05,4.57694505]
[1755988381192,4.9252,203.09,202.98,2.84]
[1755988381485,4.9252,203.09,203.0,6.2939496]
[1755988381691,3.4539496,203.1,203.02,2.84]
[1755988381887,4.9248,203.11,203.04,2.84]
[1755988382086,4.9248,203.11,203.05,8.84436245]
[1755988382391,4.9248,203.11,203.06,4.57679471]
[1755988382685,4.9248,203.11,203.02,3.4539496]
[1755988382891,4.9248,203.11,203.08,2.84]
[1755988383092,4.9248,203.11,203.09,4.57407357]
[1755988383393,4.9248,203.11,203.09,2.84]
[1755988386087,4.9248,203.11,203.06,2.67]
[1755988386292,4.9248,203.11,203.07,7.2404329]
[1755988386493,4.9248,203.11,203.08,4.5704329]
[1755988386692,4.9248,203.11,203.07,2.67]
[1755988386889,4.9248,203.11,203.08,4.5696557]
[1755988387090,4.9248,203.11,203.04,2.67]
[1755988387290,4.9248,203.11,203.06,2.67]
[1755988387490,4.9248,203.11,203.08,2.67]
[1755988406304,4.9248,203.11,203.09,2.67]
[1755988413111,4.9242,203.13,203.03,2.67]
[1755988413307,4.9242,203.13,203.04,12.30566157]
[1755988413508,4.9242,203.13,203.06,2.81]
[1755988413704,918.8678,203.24,203.01,24.6355]
[1755988413705,4.9238,203.15,203.08,2.81]
[1755988413917,4.9238,203.15,203.1,2.81]
[1755988414216,4.9238,203.15,203.12,2.81]
[1755988414506,4.9233,203.17,203.08,2.81]
[1755988414706,3.4539496,203.22,203.13,3.4539496]
[1755988414906,3.4539496,203.22,203.15,2.81]
[1755988415107,4.9223,203.21,203.17,2.81]
[1755988415409,3.4539496,203.22,203.13,3.4539496]
[1755988415610,3.4539496,203.2,203.14,7.38507311]
[1755988415819,8.3764496,203.2,203.15,4.57550707]
[1755988416015,8.3764496,203.2,203.14,2.81]
[1755988416212,8.3764496,203.2,203.16,2.81]
[1755988417512,8.3764496,203.2,203.11,4.9246]
[1755988417706,8.3764496,203.2,203.17,2.81]
[1755988419015,8.3764496,203.2,203.18,2.81]
[1755988419910,4.9225,203.2,203.18,2.81]
[1755988420217,4.9225,203.2,203.12,8.3782496]
[1755988420218,8.3760496,203.22,203.13,2.81]
[1755988420517,8.3760496,203.22,203.15,2.81]
[1755988420813,8.3760496,203.22,203.16,4.57050599]
[1755988421012,8.3760496,203.22,203.15,2.81]
[1755988421212,8.3760496,203.22,203.16,4.57053534]
[1755988421506,4.9224,203.21,203.15,2.81]
[1755988421705,3.4539496,203.22,203.15,2.81]
[1755988422512,4.9228,203.19,203.15,2.81]
[1755988422708,4.9228,203.19,203.16,2.81]
[1755988423510,4.9228,203.19,203.12,3.4539496]
[1755988423707,4.9228,203.19,203.16,2.81]
[1755988440225,3.4539496,203.17,203.11,2.81]
[1755988440728,4.9238,203.15,203.11,2.81]
[1755988440928,4.9238,203.15,203.12,2.81]
[1755988443027,4.9238,203.15,203.08,2.81]
[1755988443223,4.9238,203.15,203.1,2.81]
[1755988443429,4.9238,203.15,203.08,2.81]
[1755988443623,4.9238,203.15,203.1,2.65]
[1755988443932,4.9238,203.15,203.12,2.65]
[1755988445233,4.9238,203.15,203.13,2.65]
[1755988445435,4.9238,203.15,203.08,2.65]
[1755988445633,4.9238,203.15,203.09,4.60661926]
[1755988445834,4.9238,203.15,203.11,2.65]
[1755988446729,4.9238,203.15,203.12,2.65]
[1755988451843,8.3772496,203.17,203.12,2.65]
[1755988452142,3.4539496,203.17,203.12,2.65]
[1755988453737,4.9236,203.16,203.12,2.65]
[1755988467252,4.9236,203.16,203.13,2.65]
[1755988469149,3.4539496,203.17,203.13,2.65]
[1755988470356,8.3772496,203.17,203.13,2.65]
[1755988472859,4.9233,203.17,203.13,2.65]
[1755988473061,4.9233,203.17,203.14,2.65]
[1755988473760,4.9233,203.17,203.11,2.82]
[1755988474059,4.9233,203.17,203.13,2.82]
[1755988481175,4.9233,203.17,203.14,4.52472683]
[1755988481370,4.9233,203.17,203.13,2.82]
[1755988481671,4.9233,203.17,203.14,4.52472683]
[1755988481871,4.9233,203.17,203.13,2.82]
[1755988482174,4.9233,203.17,203.14,4.52472683]
[1755988482375,4.9233,203.17,203.13,2.82]
[1755988482577,4.9233,203.17,203.14,4.52587522]
[1755988482874,4.9233,203.17,203.13,2.82]
[1755988483075,4.9233,203.17,203.14,4.52587522]
[1755988483374,4.9236,203.16,203.13,2.82]
[1755988483569,4.9236,203.16,203.14,4.52735293]
[1755988483770,4.9236,203.16,203.13,2.82]
[1755988483965,4.9236,203.16,203.14,4.52738274]
[1755988484174,4.9236,203.16,203.13,2.82]
[1755988484475,4.9236,203.16,203.14,4.5291019]
[1755988484675,4.9236,203.16,203.13,2.82]
[1755988484876,4.9236,203.16,203.14,4.5291019]
[1755988485077,4.9236,203.16,203.13,2.82]
[1755988485378,4.9236,203.16,203.14,4.52913296]
[1755988485567,4.9236,203.16,203.13,2.82]
[1755988485768,67.24308221,203.21,203.15,2.82]
[1755988485974,67.24308221,203.21,203.16,4.52913296]
[1755988486174,67.24308221,203.21,203.18,2.82]
[1755988486478,4.9226,203.2,203.14,2.82]
[1755988486680,4.9226,203.2,203.12,3.4539496]
[1755988486681,3.4539496,203.2,203.15,4.52711468]
[1755988486880,3.4539496,203.18,203.12,2.82]
[1755988487081,3.4539496,203.18,203.14,2.82]
[1755988487279,3.4539496,203.18,203.15,4.52760262]
[1755988487475,3.4539496,203.18,203.14,2.82]
[1755988487685,4.9234,203.17,203.15,4.52745414]
[1755988487980,4.9234,203.17,203.14,2.82]
[1755988488178,4.9234,203.17,203.15,4.52745309]
[1755988488375,4.9234,203.17,203.14,2.82]
[1755988488579,4.9234,203.17,203.15,4.52732206]
[1755988488779,4.9234,203.17,203.14,2.82]
[1755988488975,4.9234,203.17,203.15,4.53051884]
[1755988489175,4.9234,203.17,203.14,2.82]
[1755988489376,4.9234,203.17,203.15,4.53042829]
[1755988489572,4.9234,203.17,203.14,2.82]
[1755988489777,4.9234,203.17,203.15,4.53042829]
[1755988489976,4.9234,203.17,203.14,2.82]
[1755988490182,4.9234,203.17,203.15,4.53042829]
[1755988490483,4.9234,203.17,203.14,2.82]
[1755988490682,4.9234,203.17,203.15,4.53031269]
[1755988490881,4.9234,203.17,203.14,2.82]
[1755988491078,4.9234,203.17,203.15,4.53031269]
[1755988491280,4.9234,203.17,203.14,2.82]
[1755988491480,4.9234,203.17,203.15,4.53021509]
[1755988491680,4.9234,203.17,203.14,2.82]
[1755988491882,4.9234,203.17,203.15,4.53021509]
[1755988492080,4.9234,203.17,203.14,2.82]
[1755988492383,4.9234,203.17,203.15,4.53016957]
[1755988492676,4.9234,203.17,203.14,2.82]
[1755988492884,4.9234,203.17,203.15,4.53012653]
[1755988493083,4.9234,203.17,203.14,2.82]
[1755988493383,4.9234,203.17,203.15,4.53004588]
[1755988493584,4.9234,203.17,203.14,2.82]
[1755988493785,4.9234,203.17,203.15,4.53004098]
[1755988493979,4.9234,203.17,203.14,2.82]
[1755988494179,4.9234,203.17,203.15,4.53004098]
[1755988494481,4.9234,203.17,203.14,2.82]
[1755988494777,4.9234,203.17,203.15,4.52996349]
[1755988494978,4.9234,203.17,203.14,2.82]
[1755988495181,4.9234,203.17,203.15,4.52996349]
[1755988495382,4.9234,203.17,203.14,2.82]
[1755988495582,4.9234,203.17,203.15,4.52989553]
[1755988495783,4.9234,203.17,203.14,2.82]
[1755988495984,189.83703181,203.21,203.15,4.52989553]
[1755988496183,189.83703181,203.21,203.18,2.82]
[1755988496688,4.9226,203.2,203.18,2.82]
[1755988497584,8.3765496,203.2,203.18,2.82]
[1755988505292,331.04,203.28,203.16,3.4539496]
[1755988505595,122.5739496,203.27,203.19,2.75]
[1755988505791,122.5739496,203.27,203.18,8.3768496]
[1755988505792,122.5739496,203.27,203.21,2.75]
[1755988505998,122.5739496,203.27,203.24,2.75]
[1755988506492,4.9211,203.26,203.24,2.75]
[1755988510597,122.5739496,203.27,203.24,2.75]
[1755988511100,119.12,203.27,203.24,2.75]
[1755988512412,124.0409,203.27,203.24,2.75]
[1755988516402,124.0409,203.27,203.2,2.75]
[1755988517101,4.9212,203.26,203.2,2.75]
[1755988521400,4.9214,203.25,203.19,4.9226]
[1755988521602,4.9214,203.25,203.22,2.75]
[1755988522001,4.9214,203.25,203.19,4.9226]
[1755988522298,4.9214,203.25,203.22,2.75]
[1755988522805,127.4948496,203.27,203.22,2.75]
[1755988523701,127.4948496,203.27,203.19,4.9226]
[1755988523906,127.4948496,203.27,203.2,2.75]
[1755988527107,127.4948496,203.27,203.21,4.6582039]
[1755988527405,127.4948496,203.27,203.2,2.75]
[1755988527603,127.4948496,203.27,203.21,4.65816235]
[1755988527802,127.4948496,203.27,203.2,2.75]
[1755988527999,127.4948496,203.27,203.21,4.65816235]
[1755988528310,127.4948496,203.27,203.2,2.75]
[1755988528608,3.4539496,203.3,203.22,2.75]
[1755988528808,119.06,203.3,203.24,2.75]
[1755988530607,4.9205,203.29,203.24,2.75]
[1755988532705,4.9207,203.28,203.21,8.3761496]
[1755988532910,4.9207,203.28,203.22,4.65822128]
[1755988533212,4.9207,203.28,203.21,7.6722]
[1755988533509,4.9207,203.28,203.23,2.75]
[1755988533706,4.9207,203.28,203.24,2.63]
[1755988536109,4.9207,203.28,203.25,2.63]
[1755988539215,4.9207,203.28,203.22,2.63]
[1755988539516,4.9207,203.28,203.24,2.63]
[1755988539711,4.9207,203.28,203.21,4.9222]
[1755988540018,3.4539496,203.29,203.26,2.63]
[1755988540517,8.3744496,203.29,203.26,2.63]
[1755988541718,4.9205,203.29,203.26,2.63]
[1755988543216,4.9205,203.29,203.23,2.63]
[1755988543416,4.9205,203.29,203.25,2.63]
[1755988546421,4.9205,203.29,203.22,2.63]
[1755988546621,4.9205,203.29,203.24,2.63]
[1755988546922,4.9205,203.29,203.26,2.63]
[1755988552122,4.9205,203.29,203.22,8.3758496]
[1755988552123,4.9205,203.29,203.27,2.63]
[1755988553720,127.4138496,203.31,203.28,2.63]
[1755988554123,4.9203,203.3,203.22,8.3758496]
[1755988554324,4.9203,203.3,203.23,7.30581654]
[1755988554525,4.9203,203.3,203.24,7.30581654]
[1755988554724,4.9203,203.3,203.26,2.63]
[1755988554926,4.9203,203.3,203.27,4.67581654]
[1755988555125,4.9203,203.3,203.26,2.63]
[1755988555326,4.9203,203.3,203.27,4.67567337]
[1755988555625,4.9203,203.3,203.23,2.63]
[1755988555821,4.9203,203.3,203.25,2.63]
[1755988556022,4.9203,203.3,203.26,7.30556729]
[1755988556222,4.9203,203.3,203.26,2.63]
[1755988558927,4.9203,203.3,203.22,8.3758496]
[1755988559227,4.9203,203.3,203.23,4.65265142]
[1755988559423,4.9203,203.3,203.24,7.28265142]
[1755988559625,4.9203,203.3,203.25,4.65265142]
[1755988559825,4.9203,203.3,203.26,7.28265142]
[1755988560125,4.9203,203.3,203.22,8.3758496]
[1755988560327,4.9203,203.3,203.26,2.63]
[1755988560825,4.9204,203.29,203.22,8.3758496]
[1755988561126,4.9204,203.29,203.23,4.65263289]
[1755988561327,4.9204,203.29,203.25,2.63]
[1755988561527,4.9204,203.29,203.26,4.65263289]
[1755988561827,4.9204,203.29,203.25,2.63]
[1755988562027,4.9204,203.29,203.26,4.65264514]
[1755988562218,4.9204,203.29,203.25,2.63]
[1755988562424,4.9204,203.29,203.26,4.65277051]
[1755988562627,4.9204,203.29,203.25,2.63]
[1755988562828,4.9204,203.29,203.26,4.65277051]
[1755988563029,4.9204,203.29,203.25,2.63]
[1755988563329,4.9204,203.29,203.26,4.65277051]
[1755988563529,4.9204,203.29,203.25,2.63]
[1755988563731,4.9204,203.29,203.26,4.65303512]
[1755988563929,4.9204,203.29,203.26,2.77]
[1755988564532,127.4137496,203.31,203.26,2.77]
[1755988566733,4.9202,203.3,203.26,2.77]
[1755988567435,4.9202,203.3,203.27,4.65459374]
[1755988567635,4.9202,203.3,203.26,2.77]
[1755988567932,4.9202,203.3,203.27,4.65459374]
[1755988568129,4.9202,203.3,203.26,2.77]
[1755988568333,4.9202,203.3,203.27,4.65463012]
[1755988568533,4.9202,203.3,203.26,2.77]
[1755988568727,4.9202,203.3,203.27,4.65515324]
[1755988568926,4.9202,203.3,203.27,2.77]
[1755988569835,4.9202,203.3,203.23,2.77]
[1755988570035,4.9202,203.3,203.24,4.65581613]
[1755988570235,4.9202,203.3,203.26,2.77]
[1755988570536,4.9202,203.3,203.27,4.65581613]
[1755988570736,4.9202,203.3,203.26,2.77]
[1755988570931,4.9202,203.3,203.27,4.65639027]
[1755988571126,4.9202,203.3,203.26,2.77]
[1755988571326,4.9202,203.3,203.27,4.65641781]
[1755988571535,4.9202,203.3,203.26,2.77]
[1755988571736,4.9202,203.3,203.27,4.65682722]
[1755988572034,4.9202,203.3,203.26,2.77]
[1755988572333,4.9202,203.3,203.27,4.65685359]
[1755988572534,4.9202,203.3,203.26,2.77]
[1755988572733,4.9202,203.3,203.27,4.65734928]
[1755988572936,4.9202,203.3,203.26,2.77]
[1755988573235,4.9202,203.3,203.27,4.65734928]
[1755988573438,4.9202,203.3,203.26,2.77]
[1755988573636,4.9202,203.3,203.27,4.65737301]
[1755988573830,4.9202,203.3,203.26,2.77]
[1755988574031,4.9202,203.3,203.27,4.65799514]
[1755988574228,4.9202,203.3,203.26,2.77]
[1755988574430,4.9202,203.3,203.27,4.65798468]
[1755988574639,4.9202,203.3,203.26,2.77]
[1755988574838,4.9202,203.3,203.27,4.65798468]
[1755988575038,4.9202,203.3,203.26,2.77]
[1755988575235,4.9202,203.3,203.27,4.65800481]
[1755988575440,4.9202,203.3,203.26,2.77]
[1755988575638,4.9202,203.3,203.27,4.65797371]
[1755988575937,4.9202,203.3,203.26,2.77]
[1755988576240,4.9202,203.3,203.27,4.65797367]
[1755988576439,4.9202,203.3,203.26,2.77]
[1755988576635,4.9202,203.3,203.27,4.65796509]
[1755988576934,4.9202,203.3,203.26,2.77]
[1755988577134,4.9202,203.3,203.27,4.65796509]
[1755988577332,4.9202,203.3,203.26,2.77]
[1755988577530,4.9202,203.3,203.27,4.65795889]
[1755988577733,4.9202,203.3,203.26,2.77]
[1755988577939,4.9202,203.3,203.27,4.65795889]
[1755988578132,4.9202,203.3,203.26,2.77]
[1755988578334,4.9202,203.3,203.27,4.65798341]
[1755988578535,4.9202,203.3,203.26,2.77]
[1755988578734,4.9202,203.3,203.27,4.65803138]
[1755988578936,4.9202,203.3,203.27,2.77]
[1755988579541,4.9202,203.3,203.28,4.6581136]
[1755988579742,4.9202,203.3,203.27,2.77]
[1755988579941,4.9202,203.3,203.28,4.65808336]
[1755988580142,4.9202,203.3,203.27,2.77]
[1755988580444,4.9202,203.3,203.28,4.65805001]
[1755988580639,4.9202,203.3,203.27,2.77]
[1755988580840,4.9202,203.3,203.28,4.65811275]
[1755988581144,4.9202,203.3,203.27,2.77]
[1755988581347,4.9202,203.3,203.28,4.65807863]
[1755988581642,4.9202,203.3,203.27,2.77]
[1755988581842,4.9202,203.3,203.28,4.65815358]
[1755988582042,4.9202,203.3,203.27,2.77]
[1755988582238,4.9202,203.3,203.28,4.65785168]
[1755988582439,4.9202,203.3,203.27,2.77]
[1755988582639,4.9202,203.3,203.28,4.6581156]
[1755988582839,4.9202,203.3,203.27,2.77]
[1755988583040,4.9202,203.3,203.28,4.6581156]
[1755988583240,4.9202,203.3,203.27,2.77]
[1755988583443,4.9202,203.3,203.28,4.6582709]
[1755988583640,4.9202,203.3,203.27,2.77]
[1755988583840,4.9202,203.3,203.28,4.6582709]
[1755988584040,4.9202,203.3,203.27,2.77]
[1755988584242,4.9202,203.3,203.28,4.65813]
[1755988584443,4.9202,203.3,203.27,2.77]
[1755988584745,4.9202,203.3,203.28,4.65826684]
[1755988584945,4.9202,203.3,203.27,2.77]
[1755988585144,4.9202,203.3,203.28,4.65826519]
[1755988585346,4.9202,203.3,203.27,2.77]
[1755988585547,4.9202,203.3,203.28,4.65821076]
[1755988585747,4.9202,203.3,203.27,2.77]
[1755988586149,4.9202,203.3,203.28,4.65821076]
[1755988586350,4.9202,203.3,203.27,2.77]
[1755988587249,4.9202,203.3,203.28,4.66315749]
[1755988587459,4.9202,203.3,203.27,2.77]
[1755988588050,4.9202,203.3,203.23,4.9216]
[1755988588250,4.9202,203.3,203.28,2.77]
[1755988594158,4.9202,203.3,203.23,4.9216]
[1755988594360,4.9202,203.3,203.29,2.76]
[1755988595255,4.9202,203.3,203.23,4.9216]
[1755988595556,4.9202,203.3,203.24,9.02251786]
[1755988595751,4.9202,203.3,203.28,2.76]
[1755988596158,4.9202,203.3,203.23,4.9216]
[1755988596353,4.9202,203.3,203.29,2.76]
[1755988596751,4.9202,203.3,203.26,2.76]
[1755988596961,4.9202,203.3,203.28,2.76]
[1755988597861,4.9202,203.3,203.23,4.9216]
[1755988598062,4.9202,203.3,203.24,9.02274701]
[1755988598260,4.9202,203.3,203.27,2.76]
[1755988598459,4.9202,203.3,203.28,4.66350399]
[1755988598760,4.9202,203.3,203.27,2.76]
[1755988598960,4.9202,203.3,203.28,4.66340639]
[1755988599164,4.9202,203.3,203.27,2.76]
[1755988599363,4.9202,203.3,203.28,4.66335057]
[1755988599558,4.9202,203.3,203.27,2.76]
[1755988599860,4.9202,203.3,203.28,4.66331522]
[1755988600064,4.9202,203.3,203.27,2.76]
[1755988600261,4.9202,203.3,203.28,4.66326735]
[1755988600457,4.9202,203.3,203.27,2.76]
[1755988600662,4.9202,203.3,203.28,4.66322988]
[1755988600863,4.9202,203.3,203.27,2.76]
[1755988601062,4.9202,203.3,203.28,4.66322988]
[1755988601263,4.9202,203.3,203.27,2.76]
[1755988601467,4.9202,203.3,203.28,4.66314987]
[1755988601668,4.9202,203.3,203.27,2.76]
[1755988601966,4.9202,203.3,203.28,4.66314987]
[1755988602168,4.9202,203.3,203.27,2.76]
[1755988602366,4.9202,203.3,203.28,4.6631159]
[1755988602570,4.9202,203.3,203.27,2.76]
[1755988602772,4.9202,203.3,203.28,4.66310334]
[1755988602971,4.9202,203.3,203.28,2.76]
[1755988604476,4.9202,203.3,203.23,4.9216]
[1755988604675,4.9202,203.3,203.26,2.76]
[1755988604875,4.9202,203.3,203.27,7.42304368]